[Event "MČR v rapid šachu družstev 2019"]
[Site "Teplice, Czech Republic"]
[Date "2019.09.15"]
[Round "8.13"]
[White "Slampa, Jan"]
[Black "Jirovsky, Milos"]
[Result "0-1"]
[TimeControl "15 min. + 5s"]
[WhiteElo "2166"]
[BlackElo "2477"]

1. d4 {[%clk 00:15:08]} d5 {[%clk 00:15:09]} 2. c4 {[%clk 00:15:12]} e6 {[%clk
00:15:14]} 3. Nc3 {[%clk 00:15:15]} {[%emt 00:00:03]} Nf6 {[%clk 00:15:18]} 4.
cxd5 {[%clk 00:15:18]} {[%emt 00:00:03]} exd5 {[%clk 00:15:22]} 5. Bg5 {[%clk
00:15:22]} {[%emt 00:00:01]} c6 {[%clk 00:15:26]} {[%emt 00:00:01]} 6. Qc2
{[%clk 00:15:26]} {[%emt 00:00:01]} Na6 {[%clk 00:15:30]} {[%emt 00:00:01]} 7.
a3 {[%clk 00:15:29]} {[%emt 00:00:01]} Nc7 {[%clk 00:15:34]} {[%emt 00:00:01]}
8. e3 {[%clk 00:15:30]} {[%emt 00:00:04]} Be7 {[%clk 00:15:38]} {[%emt
00:00:01]} 9. Bd3 {[%clk 00:15:30]} {[%emt 00:00:05]} Ne6 {[%clk 00:15:42]}
{[%emt 00:00:02]} 10. Bh4 {[%clk 00:15:25]} {[%emt 00:00:10]} g6 {[%clk
00:15:45]} {[%emt 00:00:02]} 11. Nge2 {[%clk 00:15:21]} {[%emt 00:00:09]} Ng7
{[%clk 00:15:48]} {[%emt 00:00:02]} 12. f3 {[%clk 00:15:04]} {[%emt 00:00:21]}
O-O {[%clk 00:15:11]} {[%emt 00:00:43]} 13. O-O {[%clk 00:15:03]} {[%emt
00:00:05]} Be6 {[%clk 00:15:06]} {[%emt 00:00:11]} 14. Rad1 {[%clk 00:14:06]}
{[%emt 00:01:01]} Rc8 {[%clk 00:15:07]} {[%emt 00:00:05]} 15. b4 {[%clk
00:13:23]} {[%emt 00:00:47]} Re8 {[%clk 00:14:55]} {[%emt 00:00:18]} 16. e4
{[%clk 00:11:59]} {[%emt 00:01:29]} a5 {[%clk 00:11:38]} {[%emt 00:03:22]} 17.
e5 {[%clk 00:09:42]} {[%emt 00:02:22]} Nd7 {[%clk 00:11:39]} {[%emt 00:00:05]}
18. Bxe7 {[%clk 00:09:43]} {[%emt 00:00:03]} Rxe7 {[%clk 00:11:40]} {[%emt
00:00:04]} 19. Ng3 {[%clk 00:08:52]} {[%emt 00:00:56]} axb4 {[%clk 00:11:38]}
{[%emt 00:00:08]} 20. axb4 {[%clk 00:08:55]} {[%emt 00:00:01]} Qb6 {[%clk
00:11:36]} {[%emt 00:00:07]} 21. Qf2 {[%clk 00:08:19]} {[%emt 00:00:41]} Qxb4
{[%clk 00:11:26]} {[%emt 00:00:15]} 22. Nce2 {[%clk 00:08:21]} {[%emt
00:00:03]} c5 {[%clk 00:11:18]} {[%emt 00:00:14]} 23. Rb1 {[%clk 00:08:18]}
{[%emt 00:00:08]} Qa3 {[%clk 00:11:18]} {[%emt 00:00:05]} 24. Nf4 {[%clk
00:06:55]} {[%emt 00:01:28]} cxd4 {[%clk 00:11:08]} {[%emt 00:00:16]} 25. Rxb7
{[%clk 00:06:25]} {[%emt 00:00:35]} Nxe5 {[%clk 00:10:42]} {[%emt 00:00:30]} 26.
Rxe7 {[%clk 00:06:25]} {[%emt 00:00:04]} Qxe7 {[%clk 00:10:37]} {[%emt
00:00:10]} 27. Qxd4 {[%clk 00:06:20]} {[%emt 00:00:10]} Nc6 {[%clk 00:09:51]}
{[%emt 00:00:51]} 28. Qe3 {[%clk 00:05:47]} {[%emt 00:00:38]} Qd6 {[%clk
00:09:28]} {[%emt 00:00:28]} 29. Re1 {[%clk 00:05:38]} {[%emt 00:00:14]} Rd8
{[%clk 00:09:13]} {[%emt 00:00:20]} 30. Qd2 {[%clk 00:05:28]} {[%emt 00:00:14]}
Ne5 {[%clk 00:08:37]} {[%emt 00:00:42]} 31. Bb1 {[%clk 00:05:12]} {[%emt
00:00:21]} Nc6 {[%clk 00:06:43]} {[%emt 00:01:59]} 32. Nfh5 {[%clk 00:04:10]}
{[%emt 00:01:06]} Ne8 {[%clk 00:02:45]} {[%emt 00:04:03]} 33. Qg5 {[%clk
00:02:33]} {[%emt 00:01:43]} Rb8 {[%clk 00:02:47]} {[%emt 00:00:03]} 34. Nf6+
{[%clk 00:02:23]} {[%emt 00:00:15]} Nxf6 {[%clk 00:02:51]} {[%emt 00:00:01]} 35.
Qxf6 {[%clk 00:02:26]} {[%emt 00:00:01]} Qc5+ {[%clk 00:02:49]} {[%emt
00:00:07]} 36. Kh1 {[%clk 00:02:26]} {[%emt 00:00:05]} Qb4 {[%clk 00:02:48]}
{[%emt 00:00:06]} 37. Rg1 {[%clk 00:01:24]} {[%emt 00:01:06]} Qxb1 {[%clk
00:02:34]} {[%emt 00:00:19]} 38. Nh5 {[%clk 00:01:21]} {[%emt 00:00:08]} gxh5
{[%clk 00:02:34]} {[%emt 00:00:05]} 39. g4 {[%clk 00:01:25]} {[%emt 00:00:02]}
Qb2 {[%clk 00:01:35]} {[%emt 00:01:04]} 40. gxh5+ {[%clk 00:00:22]} {[%emt
00:01:08]} Kf8 {[%clk 00:01:39]} {[%emt 00:00:01]} 41. Qf4 {[%clk 00:00:19]}
{[%emt 00:00:08]} Qe5 {[%clk 00:01:35]} {[%emt 00:00:09]} 42. Qc1 {[%clk
00:00:14]} {[%emt 00:00:09]} Rc8 {[%clk 00:01:23]} {[%emt 00:00:18]} 43. Qa3+
{[%clk 00:00:14]} {[%emt 00:00:06]} Ne7 {[%clk 00:01:22]} {[%emt 00:00:05]} 0-1

[Event "MČR v rapid šachu družstev 2019"]
[Site "Teplice, Czech Republic"]
[Date "2019.09.15"]
[Round "8.14"]
[White "Sokolov, Alexander"]
[Black "Horak, Jiri"]
[Result "1-0"]
[TimeControl "15 min. + 5s"]
[WhiteElo "2384"]
[BlackElo "2151"]

1. e4 {[%clk 00:15:08]} {[%emt 00:00:02]} e5 {[%clk 00:15:09]} {[%emt
00:00:02]} 2. f4 {[%clk 00:15:11]} {[%emt 00:00:02]} exf4 {[%clk 00:15:08]}
{[%emt 00:00:05]} 3. Nf3 {[%clk 00:15:15]} Nf6 {[%clk 00:15:08]} {[%emt
00:00:06]} 4. e5 {[%clk 00:15:19]} {[%emt 00:00:02]} Nh5 {[%clk 00:15:11]}
{[%emt 00:00:02]} 5. d4 {[%clk 00:15:22]} {[%emt 00:00:02]} d5 {[%clk
00:15:02]} {[%emt 00:00:14]} 6. Be2 {[%clk 00:15:24]} {[%emt 00:00:03]} g6
{[%clk 00:14:42]} {[%emt 00:00:24]} 7. O-O {[%clk 00:15:27]} {[%emt 00:00:03]}
c5 {[%clk 00:14:03]} {[%emt 00:00:44]} 8. c3 {[%clk 00:14:09]} {[%emt
00:01:23]} Bg4 {[%clk 00:13:50]} {[%emt 00:00:17]} 9. Na3 {[%clk 00:10:43]}
{[%emt 00:03:31]} Nc6 {[%clk 00:12:49]} {[%emt 00:01:06]} 10. Nc2 {[%clk
00:10:18]} {[%emt 00:00:30]} cxd4 {[%clk 00:12:14]} {[%emt 00:00:40]} 11. cxd4
{[%clk 00:10:17]} {[%emt 00:00:07]} Be7 {[%clk 00:12:00]} {[%emt 00:00:19]} 12.
Nfe1 {[%clk 00:10:11]} {[%emt 00:00:11]} Bxe2 {[%clk 00:11:28]} {[%emt
00:00:37]} 13. Qxe2 {[%clk 00:10:14]} {[%emt 00:00:01]} Qb6 {[%clk 00:10:52]}
{[%emt 00:00:41]} 14. Qf2 {[%clk 00:09:42]} {[%emt 00:00:38]} O-O {[%clk
00:10:22]} {[%emt 00:00:35]} 15. Nd3 {[%clk 00:09:04]} {[%emt 00:00:44]} Nd8
{[%clk 00:09:42]} {[%emt 00:00:45]} 16. Nxf4 {[%clk 00:08:41]} {[%emt
00:00:28]} Nxf4 {[%clk 00:09:22]} {[%emt 00:00:25]} 17. Bxf4 {[%clk 00:08:26]}
{[%emt 00:00:21]} Qxb2 {[%clk 00:08:47]} {[%emt 00:00:39]} 18. Rfb1 {[%clk
00:07:49]} {[%emt 00:00:42]} Qc3 {[%clk 00:08:37]} {[%emt 00:00:15]} 19. Rb3
{[%clk 00:07:42]} {[%emt 00:00:11]} Qc6 {[%clk 00:08:23]} {[%emt 00:00:19]} 20.
Bh6 {[%clk 00:07:42]} {[%emt 00:00:06]} Re8 {[%clk 00:08:19]} {[%emt 00:00:09]}
21. Ne3 {[%clk 00:07:29]} {[%emt 00:00:19]} Bf8 {[%clk 00:07:20]} {[%emt
00:01:04]} 22. Ng4 {[%clk 00:06:13]} {[%emt 00:01:21]} Bxh6 {[%clk 00:06:43]}
{[%emt 00:00:42]} 23. Nxh6+ {[%clk 00:06:16]} {[%emt 00:00:01]} Kg7 {[%clk
00:06:47]} {[%emt 00:00:01]} 24. Rh3 {[%clk 00:06:20]} {[%emt 00:00:01]} Qe6
{[%clk 00:05:58]} {[%emt 00:00:53]} 25. Rf1 {[%clk 00:06:00]} {[%emt 00:00:26]}
Rc8 {[%clk 00:04:56]} {[%emt 00:01:06]} 26. Qh4 {[%clk 00:05:33]} {[%emt
00:00:32]} Rh8 {[%clk 00:04:22]} {[%emt 00:00:39]} 27. Qg5 {[%clk 00:05:23]}
{[%emt 00:00:15]} Kf8 {[%clk 00:03:40]} {[%emt 00:00:47]} 28. Rhf3 {[%clk
00:05:20]} {[%emt 00:00:09]} Ke8 {[%clk 00:03:31]} {[%emt 00:00:13]} 29. h4
{[%clk 00:03:01]} {[%emt 00:02:24]} Qe7 {[%clk 00:02:55]} {[%emt 00:00:40]} 30.
Nxf7 {[%clk 00:02:08]} {[%emt 00:00:59]} Nxf7 {[%clk 00:01:52]} {[%emt
00:01:08]} 31. Qxe7+ {[%clk 00:02:05]} {[%emt 00:00:08]} Kxe7 {[%clk 00:01:56]}
{[%emt 00:00:02]} 32. Rxf7+ {[%clk 00:02:09]} {[%emt 00:00:01]} Ke8 {[%clk
00:01:33]} {[%emt 00:00:28]} 33. Kh2 {[%clk 00:01:36]} {[%emt 00:00:39]} Rc1
{[%clk 00:00:26]} {[%emt 00:01:11]} 34. Rxc1 {[%clk 00:01:20]} {[%emt
00:00:21]} Kxf7 {[%emt 00:00:02]} 35. Rc7+ Ke6 {[%clk 00:00:28]} {[%emt
00:00:06]} 36. Rxb7 {[%clk 00:01:28]} {[%emt 00:00:01]} Rc8 {[%clk 00:00:24]}
{[%emt 00:00:09]} 37. Rxa7 {[%clk 00:01:25]} {[%emt 00:00:09]} Rc4 {[%clk
00:00:27]} {[%emt 00:00:01]} 38. Rxh7 {[%clk 00:01:16]} {[%emt 00:00:14]} Rxd4
{[%clk 00:00:30]} {[%emt 00:00:02]} 39. Kg3 {[%clk 00:01:10]} {[%emt 00:00:11]}
Kxe5 {[%clk 00:00:31]} {[%emt 00:00:04]} 40. Re7+ {[%clk 00:01:06]} {[%emt
00:00:09]} Kf5 {[%clk 00:00:30]} {[%emt 00:00:06]} 41. Rf7+ {[%clk 00:00:58]}
{[%emt 00:00:13]} Ke5 {[%clk 00:00:27]} {[%emt 00:00:07]} 42. Re7+ {[%clk
00:00:44]} {[%emt 00:00:20]} Kf5 {[%clk 00:00:31]} {[%emt 00:00:02]} 43. Rf7+
{[%clk 00:00:47]} {[%emt 00:00:01]} Ke6 {[%clk 00:00:27]} {[%emt 00:00:09]} 44.
Rf8 {[%clk 00:00:45]} {[%emt 00:00:07]} Ra4 {[%clk 00:00:29]} {[%emt 00:00:03]}
45. Re8+ {[%clk 00:00:45]} {[%emt 00:00:05]} Kf5 {[%clk 00:00:29]} {[%emt
00:00:05]} 46. Rf8+ {[%clk 00:00:47]} {[%emt 00:00:03]} Ke4 {[%clk 00:00:32]}
{[%emt 00:00:02]} 47. Rf4+ {[%clk 00:00:51]} {[%emt 00:00:02]} 1-0

[Event "MČR v rapid šachu družstev 2019"]
[Site "Teplice, Czech Republic"]
[Date "2019.09.15"]
[Round "8.15"]
[White "Nudcenko, Karel"]
[Black "Dolezal, Radoslav"]
[Result "0-1"]
[TimeControl "15 min. + 5s"]
[WhiteElo "2110"]
[BlackElo "2363"]

1. e4 {[%emt 00:06:15]} c6 {[%emt 00:00:02]} 2. Nc3 {[%emt 00:00:04]} d5 {[%emt
00:00:01]} 3. Nf3 {[%emt 00:00:02]} Bg4 {[%emt 00:00:02]} 4. h3 {[%emt
00:00:06]} Bxf3 {[%emt 00:00:02]} 5. Qxf3 {[%emt 00:00:05]} e6 {[%emt
00:00:01]} 6. exd5 {[%emt 00:00:10]} cxd5 {[%emt 00:00:03]} 7. Bb5+ {[%emt
00:00:12]} Nc6 8. O-O {[%emt 00:00:07]} Nf6 {[%emt 00:00:14]} 9. d3 {[%emt
00:00:11]} Be7 {[%emt 00:00:02]} 10. Qg3 {[%emt 00:00:32]} O-O {[%emt
00:00:07]} 11. f4 {[%emt 00:00:59]} Qb6+ {[%emt 00:01:19]} 12. Kh1 {[%emt
00:00:33]} d4 {[%emt 00:00:25]} 13. Bxc6 {[%emt 00:00:02]} dxc3 {[%emt
00:00:02]} 14. Be4 {[%emt 00:00:06]} cxb2 {[%emt 00:00:14]} 15. Rb1 {[%emt
00:00:38]} bxc1=Q {[%emt 00:00:18]} 16. Rfxc1 {[%emt 00:00:02]} Nxe4 {[%emt
00:00:05]} 17. dxe4 {[%emt 00:00:06]} Qc6 {[%emt 00:00:09]} 18. e5 {[%emt
00:00:27]} Rfd8 {[%emt 00:00:03]} 19. c4 {[%emt 00:00:10]} Rd2 {[%emt
00:00:10]} 20. Rc3 {[%emt 00:00:16]} Rad8 {[%emt 00:00:12]} 21. Qg4 {[%emt
00:00:07]} Qe4 {[%emt 00:00:26]} 0-1

[Event "MČR v rapid šachu družstev 2019"]
[Site "Teplice, Czech Republic"]
[Date "2019.09.15"]
[Round "8.16"]
[White "Postupa, Pavel"]
[Black "Tichy, Lukas"]
[Result "0-1"]
[TimeControl "15 min. + 5s"]
[WhiteElo "2203"]
[BlackElo "1869"]

1. e4 {[%clk 00:15:08]} {[%emt 00:00:01]} e6 {[%clk 00:15:09]} {[%emt
00:00:01]} 2. d4 {[%clk 00:15:12]} {[%emt 00:00:01]} d5 {[%clk 00:15:13]}
{[%emt 00:00:01]} 3. Nd2 {[%clk 00:15:16]} {[%emt 00:00:01]} a6 {[%clk
00:15:17]} 4. Ngf3 {[%clk 00:15:13]} {[%emt 00:00:09]} c5 {[%clk 00:15:21]} 5.
exd5 {[%clk 00:15:16]} {[%emt 00:00:02]} exd5 {[%clk 00:15:24]} {[%emt
00:00:01]} 6. Be2 {[%clk 00:15:19]} {[%emt 00:00:02]} Nf6 {[%clk 00:15:21]}
{[%emt 00:00:08]} 7. O-O {[%clk 00:15:21]} {[%emt 00:00:03]} Nc6 {[%clk
00:15:12]} {[%emt 00:00:14]} 8. dxc5 {[%clk 00:15:24]} {[%emt 00:00:02]} Bxc5
{[%clk 00:15:15]} {[%emt 00:00:02]} 9. Nb3 {[%clk 00:15:28]} {[%emt 00:00:01]}
Bb6 {[%clk 00:15:17]} {[%emt 00:00:03]} 10. Bg5 {[%clk 00:15:27]} {[%emt
00:00:06]} O-O {[%clk 00:15:15]} {[%emt 00:00:07]} 11. Nfd4 {[%clk 00:15:11]}
{[%emt 00:00:21]} Re8 {[%clk 00:14:45]} {[%emt 00:00:35]} 12. Bf3 {[%clk
00:14:34]} {[%emt 00:00:42]} h6 {[%clk 00:14:05]} {[%emt 00:00:45]} 13. Be3
{[%clk 00:14:03]} {[%emt 00:00:36]} Ne4 {[%clk 00:13:28]} {[%emt 00:00:41]} 14.
Rc1 {[%clk 00:13:23]} {[%emt 00:00:45]} Ne5 {[%clk 00:12:32]} {[%emt 00:01:01]}
15. Nd2 {[%clk 00:12:01]} {[%emt 00:01:27]} Bxd4 {[%clk 00:11:01]} {[%emt
00:01:36]} 16. Bxd4 {[%clk 00:11:59]} {[%emt 00:00:07]} Nxd2 {[%clk 00:11:00]}
{[%emt 00:00:06]} 17. Qxd2 {[%clk 00:11:52]} {[%emt 00:00:13]} Nxf3+ {[%clk
00:11:03]} {[%emt 00:00:02]} 18. gxf3 {[%clk 00:11:56]} {[%emt 00:00:01]} Bh3
{[%clk 00:10:28]} {[%emt 00:00:40]} 19. Rfe1 {[%clk 00:11:50]} {[%emt
00:00:11]} Qd6 {[%clk 00:09:45]} {[%emt 00:00:47]} 20. Qd3 {[%clk 00:11:49]}
{[%emt 00:00:07]} Qf4 {[%clk 00:09:14]} {[%emt 00:00:36]} 21. Kh1 {[%clk
00:08:54]} {[%emt 00:03:00]} Re6 {[%clk 00:08:12]} {[%emt 00:01:07]} 22. Rg1
{[%clk 00:08:33]} {[%emt 00:00:26]} Rg6 {[%clk 00:07:33]} {[%emt 00:00:43]} 23.
Rce1 {[%clk 00:08:19]} {[%emt 00:00:19]} Bf5 {[%clk 00:06:02]} {[%emt
00:01:37]} 24. Qd1 {[%clk 00:08:04]} {[%emt 00:00:20]} Rc8 {[%clk 00:04:47]}
{[%emt 00:01:20]} 25. c3 {[%clk 00:07:34]} {[%emt 00:00:36]} Rcc6 {[%clk
00:04:28]} {[%emt 00:00:24]} 26. Rg3 {[%clk 00:06:10]} {[%emt 00:01:29]} h5
{[%clk 00:03:17]} {[%emt 00:01:16]} 27. Qc1 {[%clk 00:03:55]} {[%emt 00:02:19]}
Qxc1 {[%clk 00:02:14]} {[%emt 00:01:08]} 28. Rxc1 {[%clk 00:03:58]} {[%emt
00:00:02]} Rce6 {[%clk 00:01:38]} {[%emt 00:00:40]} 29. Be3 {[%clk 00:03:51]}
{[%emt 00:00:13]} Bd3 {[%clk 00:01:15]} {[%emt 00:00:28]} 30. h4 {[%clk
00:03:02]} {[%emt 00:00:55]} Rxg3 {[%clk 00:01:11]} {[%emt 00:00:09]} 31. fxg3
{[%clk 00:03:04]} {[%emt 00:00:03]} Rxe3 {[%clk 00:01:15]} 0-1

[Event "MČR v rapid šachu družstev 2019"]
[Site "Teplice, Czech Republic"]
[Date "2019.09.15"]
[Round "8.17"]
[White "Kourousis, Epaminondas"]
[Black "Novotny, Michal"]
[Result "1-0"]
[TimeControl "15 min. + 5s"]
[WhiteElo "2388"]
[BlackElo "2311"]

1. Nf3 {[%clk 00:15:08]} {[%emt 00:00:02]} e6 {[%clk 00:15:08]} {[%emt
00:00:01]} 2. g3 {[%clk 00:15:03]} {[%emt 00:00:10]} d5 {[%clk 00:15:12]}
{[%emt 00:00:02]} 3. Bg2 {[%clk 00:15:00]} {[%emt 00:00:07]} Nf6 {[%clk
00:15:15]} {[%emt 00:00:02]} 4. O-O {[%clk 00:14:57]} {[%emt 00:00:08]} Be7
{[%clk 00:15:18]} {[%emt 00:00:02]} 5. d4 {[%clk 00:14:59]} {[%emt 00:00:03]}
O-O {[%clk 00:15:20]} {[%emt 00:00:03]} 6. c4 {[%clk 00:15:02]} {[%emt
00:00:02]} dxc4 {[%clk 00:15:23]} {[%emt 00:00:02]} 7. Qc2 {[%clk 00:15:01]}
{[%emt 00:00:06]} b6 {[%clk 00:15:27]} {[%emt 00:00:02]} 8. Nbd2 {[%clk
00:14:53]} {[%emt 00:00:13]} Bb7 {[%clk 00:15:24]} {[%emt 00:00:07]} 9. Nxc4
{[%clk 00:14:56]} {[%emt 00:00:02]} c5 {[%clk 00:15:25]} {[%emt 00:00:05]} 10.
dxc5 {[%clk 00:13:45]} {[%emt 00:01:16]} Bxc5 {[%clk 00:15:20]} {[%emt
00:00:09]} 11. Rd1 {[%clk 00:13:33]} {[%emt 00:00:17]} Qc8 {[%clk 00:15:21]}
{[%emt 00:00:04]} 12. Bf4 {[%clk 00:09:38]} {[%emt 00:04:00]} Bd5 {[%clk
00:15:11]} {[%emt 00:00:15]} 13. Rac1 {[%clk 00:09:31]} {[%emt 00:00:12]} Nc6
{[%clk 00:14:06]} {[%emt 00:01:10]} 14. a3 {[%clk 00:09:18]} {[%emt 00:00:19]}
Be4 {[%clk 00:09:51]} {[%emt 00:04:20]} 15. Qa4 {[%clk 00:05:28]} {[%emt
00:03:54]} Qb7 {[%clk 00:09:55]} {[%emt 00:00:02]} 16. Bd6 {[%clk 00:04:24]}
{[%emt 00:01:09]} Rfd8 {[%clk 00:05:44]} {[%emt 00:04:15]} 17. Bxc5 {[%clk
00:04:27]} {[%emt 00:00:02]} Rxd1+ {[%clk 00:05:48]} {[%emt 00:00:01]} 18. Rxd1
{[%clk 00:03:25]} {[%emt 00:01:07]} Bd5 {[%clk 00:04:10]} {[%emt 00:01:42]} 19.
Be3 {[%clk 00:03:04]} {[%emt 00:00:27]} b5 {[%clk 00:04:12]} {[%emt 00:00:04]}
20. Nd6 {[%clk 00:03:00]} {[%emt 00:00:08]} 1-0

[Event "MČR v rapid šachu družstev 2019"]
[Site "Teplice, Czech Republic"]
[Date "2019.09.15"]
[Round "8.18"]
[White "Rolinek, Dominik"]
[Black "Burdalev, Kirill"]
[Result "0-1"]
[TimeControl "15 min. + 5s"]
[WhiteElo "1999"]
[BlackElo "2336"]

1. d4 {[%clk 00:15:09]} {[%emt 00:00:01]} Nf6 {[%clk 00:15:09]} {[%emt
00:00:02]} 2. Bf4 {[%clk 00:15:13]} {[%emt 00:00:01]} c5 {[%clk 00:15:09]}
{[%emt 00:00:04]} 3. c3 {[%clk 00:15:09]} {[%emt 00:00:08]} Qb6 {[%clk
00:15:04]} {[%emt 00:00:10]} 4. Qb3 {[%clk 00:15:06]} {[%emt 00:00:08]} Nc6
{[%clk 00:14:18]} {[%emt 00:00:52]} 5. e3 {[%clk 00:15:02]} {[%emt 00:00:09]}
d5 {[%clk 00:13:57]} {[%emt 00:00:23]} 6. Nd2 {[%clk 00:15:02]} {[%emt
00:00:07]} c4 {[%clk 00:13:30]} {[%emt 00:00:32]} 7. Qc2 {[%clk 00:15:06]}
{[%emt 00:00:02]} Nh5 {[%clk 00:13:30]} {[%emt 00:00:05]} 8. Bg5 {[%clk
00:14:43]} {[%emt 00:00:28]} h6 {[%clk 00:13:25]} {[%emt 00:00:10]} 9. Bh4
{[%clk 00:14:47]} g5 {[%clk 00:12:08]} {[%emt 00:01:23]} 10. Be2 {[%clk
00:14:27]} {[%emt 00:00:24]} Ng7 {[%clk 00:12:11]} {[%emt 00:00:02]} 11. Bg3
{[%clk 00:14:28]} {[%emt 00:00:04]} Bf5 {[%clk 00:12:14]} {[%emt 00:00:01]} 12.
Qc1 {[%clk 00:14:13]} {[%emt 00:00:21]} Bg6 {[%clk 00:11:51]} {[%emt 00:00:28]}
13. e4 {[%clk 00:13:04]} {[%emt 00:01:13]} e6 {[%clk 00:11:55]} {[%emt
00:00:01]} 14. exd5 {[%clk 00:12:31]} {[%emt 00:00:38]} exd5 {[%clk 00:11:59]}
{[%emt 00:00:02]} 15. Ngf3 {[%clk 00:12:26]} {[%emt 00:00:09]} f6 {[%clk
00:11:12]} {[%emt 00:00:52]} 16. O-O {[%clk 00:12:14]} {[%emt 00:00:17]} h5
{[%clk 00:11:13]} {[%emt 00:00:05]} 17. h3 {[%clk 00:12:13]} {[%emt 00:00:06]}
Nf5 {[%clk 00:11:11]} {[%emt 00:00:07]} 18. Bh2 {[%clk 00:10:45]} {[%emt
00:01:33]} O-O-O {[%clk 00:10:39]} {[%emt 00:00:36]} 19. b3 {[%clk 00:10:44]}
{[%emt 00:00:07]} cxb3 {[%clk 00:10:39]} {[%emt 00:00:05]} 20. Nxb3 {[%clk
00:10:37]} {[%emt 00:00:12]} g4 {[%clk 00:10:27]} {[%emt 00:00:17]} 21. hxg4
{[%clk 00:10:26]} {[%emt 00:00:16]} hxg4 {[%clk 00:10:31]} 22. Ne1 {[%clk
00:10:22]} {[%emt 00:00:08]} Bh6 {[%clk 00:09:34]} {[%emt 00:01:03]} 23. Qa3
{[%clk 00:09:55]} {[%emt 00:00:32]} g3 {[%clk 00:09:35]} {[%emt 00:00:05]} 24.
Bxg3 {[%clk 00:09:17]} {[%emt 00:00:42]} Nxg3 {[%clk 00:09:37]} {[%emt
00:00:02]} 25. fxg3 {[%clk 00:09:21]} {[%emt 00:00:01]} Be3+ {[%clk 00:09:38]}
{[%emt 00:00:04]} 26. Rf2 {[%clk 00:09:25]} {[%emt 00:00:01]} Qc7 {[%clk
00:09:21]} {[%emt 00:00:23]} 27. Bg4+ {[%clk 00:07:12]} {[%emt 00:02:18]} f5
{[%clk 00:09:24]} {[%emt 00:00:01]} 28. Bf3 {[%clk 00:07:16]} {[%emt 00:00:02]}
Rh1+ {[%clk 00:09:06]} {[%emt 00:00:23]} 29. Kxh1 {[%clk 00:07:13]} {[%emt
00:00:08]} Bxf2 {[%clk 00:09:07]} {[%emt 00:00:03]} 0-1